bitfinex/quotes_ETHUSD_20220226
["timestamp","ask_amount","ask_price","bid_price","bid_amount"]
[1645896948479,1.42888582,2788.1,2788.0,5.55671017]
[1645896948678,1.42888582,2788.1,2788.0,5.63249267]
[1645896948878,1.42888582,2788.6,2788.4,1.18008106]
[1645896949320,0.6744669,2788.8,2788.4,1.18008106]
[1645896949521,1.42888582,2788.7,2788.4,1.18008106]
[1645896949718,1.42888582,2788.6,2788.4,1.18008106]
[1645896949925,1.42888582,2788.5,2788.4,1.18008106]
[1645896950723,0.00192625,2788.6,2788.4,1.18008106]
[1645896951120,1.42888582,2788.6,2788.4,1.18008106]
[1645896951323,1.42888582,2788.5,2788.4,1.48008106]
[1645896951525,0.1431,2789.4,2788.5,25.5616319]
[1645896951526,0.00192625,2788.6,2788.5,25.5616319]
[1645896951730,0.00192625,2788.6,2788.5,26.6776319]
[1645896951930,0.75696977,2789.4,2789.3,1.22464197]
[1645896952128,1.37825179,2789.4,2789.0,0.516]
[1645896952328,1.37825179,2789.3,2789.0,0.516]
[1645896952534,1.37825179,2789.2,2789.0,0.816]
[1645896952780,1.37825179,2789.1,2789.0,1.7125397]
[1645896952971,1.37825179,2789.1,2789.0,1.83458561]
[1645896953167,0.6748766,2789.6,2789.0,4.09872242]
[1645896953365,0.6748766,2789.6,2789.0,4.87320651]
[1645896953566,0.6748766,2789.6,2789.0,5.87320651]
[1645896953967,0.00482355,2789.4,2789.0,5.87320651]
[1645896954168,1.37753026,2789.3,2789.0,5.87320651]
[1645896954767,1.37753026,2789.3,2789.0,3.18361681]
[1645896955173,1.37753026,2789.3,2789.0,0.516]
[1645896955174,1.37753026,2789.2,2789.0,0.516]
[1645896955567,1.37753026,2789.2,2788.8,1.0]
[1645896955770,0.0048237,2789.3,2788.6,0.51817541]
[1645896955771,1.37645564,2789.1,2788.6,0.51817541]
[1645896955968,1.37645564,2789.0,2788.7,0.1219609]
[1645896956168,1.37645564,2788.9,2788.7,1.16025996]
[1645896956369,3.8582,2789.7,2788.7,1.03829906]
[1645896956370,1.37645564,2788.8,2788.7,1.03829906]
[1645896956619,0.004824,2789.0,2788.7,1.93494906]
[1645896956620,1.37645564,2788.9,2788.7,1.93494906]
[1645896957421,1.37645564,2788.8,2788.7,1.93494906]
[1645896957622,0.00472187,2788.9,2788.7,1.93494906]
[1645896957827,1.37645564,2788.8,2788.7,1.93494906]
[1645896958423,1.37645564,2788.8,2788.7,14.73760106]
[1645896958624,0.00351566,2789.4,2789.3,1.04300086]
[1645896958824,1.37540836,2789.4,2789.1,0.8965266]
[1645896959022,1.37540836,2789.3,2789.1,0.8965266]
[1645896959221,1.37540836,2789.2,2789.1,0.8965266]
[1645896959822,1.37540836,2789.2,2789.1,2.00365357]
[1645896960024,0.00193883,2789.3,2789.1,2.00365357]
[1645896960467,0.00193883,2789.3,2789.1,0.8965266]
[1645896960662,1.37734719,2789.3,2789.1,0.8965266]
[1645896960863,1.37540836,2789.2,2789.0,0.3]
[1645896961066,0.00351566,2789.6,2789.0,0.3]
[1645896961067,0.00194922,2789.3,2789.0,0.3]
[1645896961265,0.00194922,2789.3,2788.9,0.3]
[1645896961464,0.00194922,2789.3,2789.0,0.1434]
[1645896961670,0.00194922,2789.3,2788.9,0.1434]
[1645896961866,0.00194922,2789.3,2788.8,1.01316648]
[1645896962068,2.05380062,2789.5,2788.8,1.01316648]
[1645896962069,1.34477455,2789.4,2788.8,1.01316648]
[1645896962266,0.0047358,2789.2,2788.8,1.01316648]
[1645896962469,1.34477455,2789.1,2788.8,1.01316648]
[1645896963468,1.34477455,2789.0,2788.8,1.01316648]
[1645896963869,0.00473595,2789.1,2788.7,1.516]
[1645896963870,1.34477455,2788.9,2788.7,1.516]
[1645896964128,1.34477455,2788.8,2788.6,0.00217541]
[1645896964324,0.00473595,2789.1,2788.5,8.7891]
[1645896964325,1.34477455,2788.7,2788.5,8.7891]
[1645896964525,1.34477455,2788.6,2788.5,8.7891]
[1645896964725,1.34477455,2789.2,2788.5,8.7891]
[1645896964925,0.00503339,2788.8,2788.5,8.7891]
[1645896965129,1.34477455,2788.7,2788.5,8.7891]
[1645896966029,1.34477455,2788.6,2788.5,8.7891]
[1645896968488,1.3496382,2788.7,2788.5,8.77222]
[1645896968681,1.34477455,2788.6,2788.5,8.77222]
[1645896977185,1.34477455,2788.6,2788.5,10.28822]
[1645896977385,1.34477455,2788.6,2788.5,10.4453721]
[1645896977783,1.34477455,2788.6,2788.5,10.5717721]
[1645896978787,1.34477455,2788.6,2788.5,11.4684821]
[1645896981220,1.34477455,2788.6,2788.5,11.43161269]
[1645896981421,1.34477455,2788.6,2788.5,11.43153979]
[1645896981924,1.34477455,2788.6,2788.5,11.27446059]
[1645896982124,1.34477455,2788.6,2788.5,11.43154577]
[1645896982788,1.34477455,2788.6,2788.5,11.27446059]
[1645896982981,1.34477455,2788.6,2788.5,11.4315663]
[1645896983180,1.34477455,2788.6,2788.5,11.43156686]
[1645896983381,1.34477455,2788.6,2788.5,11.27446059]
[1645896983988,1.34477455,2788.6,2788.5,11.43155769]
[1645896984287,1.34477455,2788.6,2788.5,11.27446059]
[1645896984982,1.34477455,2788.6,2788.5,11.43158788]
[1645896985182,1.34477455,2788.6,2788.5,11.27446059]
[1645896985384,1.34477455,2788.6,2788.5,11.43158573]
[1645896985582,1.34477455,2788.6,2788.5,11.27446059]
[1645896985782,1.34477455,2788.6,2788.5,11.43159486]
[1645896985981,1.34477455,2788.6,2788.5,10.37775059]
[1645896986184,1.34477455,2788.6,2788.5,10.53488548]
[1645896986385,1.34477455,2788.6,2788.5,10.37775059]
[1645896986835,1.34477455,2788.6,2788.5,10.53485796]
[1645896987130,1.34477455,2788.6,2788.5,10.53485215]
[1645896987532,1.34477455,2788.6,2788.5,10.37775059]
[1645896987733,1.34477455,2788.6,2788.5,10.53486659]
[1645896990042,0.00444732,2788.7,2788.6,12.5]
[1645896990297,0.00444732,2788.7,2788.6,29.29022344]
[1645896990298,0.00337285,2788.7,2788.6,29.29022344]
[1645896990478,0.00337285,2788.7,2788.6,35.86262344]
[1645896990675,0.00337285,2788.7,2788.6,44.70522344]
[1645896990876,0.00337285,2788.7,2788.6,41.89582]
[1645896991077,0.00351566,2789.3,2789.0,2.33537903]
[1645896991284,0.6748766,2789.6,2789.1,0.516]
[1645896991477,0.6748766,2789.6,2789.4,0.1264]
[1645896991681,0.6748766,2789.6,2789.5,0.516]
[1645896991879,0.6748766,2789.7,2789.5,0.516]
[1645896992482,0.6748766,2789.7,2789.2,0.516]
[1645896994927,0.00502964,2789.6,2789.2,0.516]
[1645896995726,0.6748766,2789.7,2789.2,0.516]
[1645896995925,0.00502969,2789.5,2789.2,0.516]
[1645896996531,0.00502969,2789.5,2789.2,0.6594]
[1645896996929,0.6748766,2789.7,2789.2,0.6594]
[1645896997236,0.00502974,2789.5,2789.2,0.6594]
[1645896998279,0.67839226,2789.7,2789.2,1.80730333]
[1645896998480,0.00502974,2789.5,2789.2,14.51022013]
[1645896998684,0.00502974,2789.5,2789.4,0.89643]
[1645896998883,0.00502974,2789.5,2789.4,1.41243]
[1645896999079,0.00502974,2789.5,2789.4,1.55573]
[1645896999280,0.67839226,2789.9,2789.4,1.68213]
[1645896999480,0.6748766,2790.0,2789.4,1.68213]
[1645896999680,0.0022426,2789.6,2789.4,1.68213]
[1645896999887,0.0022426,2789.6,2789.4,1.55573]
[1645897000184,0.0022426,2789.6,2789.5,0.1264]
[1645897000584,0.00351566,2789.9,2789.5,0.1264]
[1645897000882,0.00503338,2789.7,2789.5,0.1264]
[1645897001731,0.67839226,2790.0,2789.5,0.1264]
[1645897002031,0.00503333,2789.7,2789.2,0.516]
[1645897002230,0.00503333,2789.7,2788.9,0.516]
[1645897002435,0.00503333,2789.7,2788.9,0.6594]
[1645897002829,0.00503333,2789.7,2788.9,0.7858]
[1645897003029,0.67839226,2789.8,2789.0,1.7931234]
[1645897003231,0.00503363,2789.4,2789.0,1.7931234]
[1645897004034,0.00503363,2789.4,2789.0,2.3091234]
[1645897004235,0.00351566,2789.7,2789.0,2.3091234]
[1645897004435,0.00503373,2789.3,2789.0,2.3091234]
[1645897005040,0.00503373,2789.3,2789.0,2.6091234]
[1645897005284,0.00503373,2789.3,2789.0,3.6091234]
[1645897005474,0.00351566,2789.7,2789.0,3.6091234]
[1645897005679,0.00503378,2789.3,2789.0,3.6091234]
[1645897006583,0.00351566,2789.8,2789.0,3.6091234]
[1645897006776,0.00503378,2789.3,2789.0,3.6091234]
[1645897007378,0.00503378,2789.3,2789.1,0.1264]
[1645897007582,0.00503378,2789.3,2789.0,3.6091234]
[1645897007779,0.00351566,2789.8,2789.2,0.1264]
[1645897008078,0.00503373,2789.3,2789.0,3.6091234]
[1645897008279,0.00503373,2789.3,2789.2,0.1264]
[1645897009125,0.00469099,2789.4,2789.2,1.0228801]
[1645897009323,0.00469099,2789.4,2789.2,0.8964801]
[1645897009525,0.00469099,2789.4,2789.3,0.1264]
[1645897010132,0.00351566,2789.8,2789.3,1.02286]
[1645897010328,0.6748766,2789.9,2789.2,0.30207003]
[1645897010528,0.00469091,2789.5,2789.3,1.16260113]
[1645897011127,1.31398151,2789.4,2789.3,2.16260113]
[1645897011333,1.31398151,2789.4,2789.3,13.58627941]
[1645897011528,1.31398151,2789.4,2789.3,14.48273941]
[1645897011729,1.31398151,2789.4,2789.3,15.48273941]
[1645897012128,1.31398151,2789.4,2789.3,15.26906113]
[1645897012332,1.31398151,2789.4,2789.3,15.48272647]
[1645897012532,1.31398151,2789.4,2789.3,15.26906113]
[1645897012787,1.31398151,2789.4,2789.3,15.48272731]
[1645897013078,1.31398151,2789.4,2789.3,15.26906113]
[1645897013582,0.00469091,2789.5,2789.3,15.99871991]
[1645897013779,0.00351566,2790.2,2789.5,10.91]
[1645897013978,1.2844172,2790.2,2790.0,1.03736292]
[1645897014180,1.2844172,2790.1,2789.8,0.516]
[1645897014379,1.2844172,2790.0,2789.8,0.516]
[1645897014579,1.2844172,2789.9,2789.8,0.516]
[1645897014979,0.6748766,2790.3,2789.8,0.516]
[1645897015180,0.00471359,2790.0,2789.8,0.516]
[1645897015384,0.00471359,2790.0,2789.9,1.21465553]
[1645897015580,1.28899787,2790.0,2789.9,0.21465553]
[1645897016178,1.28428428,2790.0,2789.9,0.21465553]
[1645897018652,1.28428428,2790.0,2789.8,1.7924736]
[1645897018831,1.28428428,2789.9,2789.8,1.7924736]
[1645897019233,1.28428428,2790.0,2789.8,1.7924736]
[1645897019432,1.28428428,2789.9,2789.8,1.7924736]
[1645897019632,1.28428428,2790.0,2789.8,3.1510154]
[1645897019833,1.28428428,2790.0,2789.8,4.1510154]
[1645897020033,1.28428428,2789.9,2789.8,4.1510154]
[1645897020285,1.28428428,2789.9,2789.8,15.0610154]
[1645897020476,1.28428428,2789.9,2789.8,16.09051642]
[1645897020670,1.28428428,2789.9,2789.8,17.09051642]
[1645897021472,0.0047121,2790.0,2789.8,17.09051642]
[1645897021674,1.28428428,2789.9,2789.8,16.8770154]
[1645897021872,1.28428428,2789.9,2789.8,17.09048632]
[1645897022075,1.35505085,2791.1,2790.0,12.5]
[1645897022286,0.01883633,2791.8,2790.0,12.5]
[1645897022287,0.89611,2792.7,2790.3,13.70457953]
[1645897022479,7.5276,2793.4,2791.5,0.01298453]
[1645897022480,2.24724877,2792.9,2791.5,0.01298453]
[1645897022685,3.34888677,2793.4,2792.1,0.012388]
[1645897022686,0.67444409,2792.4,2792.1,0.012388]
[1645897022878,2.52765807,2793.3,2792.3,6.446]
[1645897023082,0.67300359,2793.1,2792.4,3.5]
[1645897023277,0.67298897,2793.4,2793.0,6.446]
[1645897023479,0.56238107,2793.3,2793.1,13.74203]
[1645897023782,0.23467053,2793.8,2793.3,6.746]
[1645897024033,0.23467053,2793.8,2793.4,4.016]
[1645897024233,0.42112011,2793.7,2793.4,4.016]
[1645897024437,0.89733813,2794.1,2793.4,0.516]
[1645897024438,0.42112011,2793.6,2793.4,0.516]
[1645897024637,5.0,2794.5,2793.1,8.831]
[1645897024638,0.42112011,2793.5,2793.1,8.831]
[1645897024837,5.0,2793.8,2793.1,8.831]
[1645897024838,0.42112011,2793.4,2793.1,8.831]
[1645897025036,0.00504031,2793.7,2793.1,8.831]
[1645897025037,0.42112011,2793.3,2793.1,8.831]
[1645897025232,0.42112011,2793.6,2793.1,8.831]
[1645897025434,0.56422011,2793.6,2793.1,8.831]
[1645897025638,0.42112011,2793.5,2793.1,8.831]
[1645897026036,0.42616063,2793.5,2793.1,8.831]
[1645897026234,0.42112011,2793.4,2793.1,8.831]
[1645897027242,0.42112011,2793.3,2793.1,8.831]
[1645897027544,0.42112011,2793.2,2793.1,8.831]
[1645897028687,1.56882011,2793.2,2793.1,8.831]
[1645897028886,1.56882011,2793.2,2793.1,5.13961137]
[1645897029285,1.71192011,2793.2,2793.1,5.13961137]
[1645897029586,2.01192011,2793.2,2793.1,5.13961137]
[1645897029786,3.48591897,2793.1,2792.4,0.25]
[1645897029987,3.84411897,2793.1,2791.9,0.1431]
[1645897030187,0.00350107,2793.0,2791.6,0.1431]
[1645897030387,0.00350107,2793.0,2792.1,0.89559]
[1645897030584,0.00350107,2793.0,2792.1,1.03869]
[1645897030791,0.00504158,2792.4,2792.3,0.89553]
[1645897030987,0.00504158,2792.4,2792.3,1.35536687]
[1645897031386,0.00504158,2792.4,2792.3,0.59684281]
[1645897031835,0.00350107,2793.0,2792.3,0.59684281]
[1645897032037,0.00504153,2792.5,2792.3,0.59684281]
[1645897032738,0.00504153,2792.5,2792.3,2.38787281]
[1645897032936,0.00350107,2793.0,2792.3,2.38787281]
[1645897033134,0.3582,2793.4,2792.8,1.08249492]
[1645897033135,0.00350107,2793.4,2792.8,1.08249492]
[1645897033341,0.02016288,2793.0,2792.8,1.08249492]
[1645897034136,3.5,2793.5,2792.8,1.08249492]
[1645897034339,0.00350107,2793.6,2792.8,1.08249492]
[1645897034638,0.00504097,2793.0,2792.8,1.08249492]
[1645897035470,0.00350107,2793.5,2792.4,0.1431]
[1645897035671,0.00504097,2793.0,2792.4,0.1431]
[1645897036675,0.00350107,2793.4,2792.7,1.30143623]
[1645897036875,0.00504117,2792.8,2792.4,0.1431]
[1645897037877,3.50350107,2793.6,2792.5,1.12537691]
[1645897038077,0.00504127,2792.7,2792.5,1.12537691]
[1645897038484,0.00504127,2792.7,2792.5,2.02084691]
[1645897039134,0.00350107,2793.3,2793.1,1.26791981]
[1645897039334,0.00504127,2792.7,2792.5,0.89547]
[1645897040134,0.00350107,2793.7,2792.5,0.89547]
[1645897040334,0.00350107,2793.7,2792.6,1.2041773]
[1645897040533,0.00504127,2792.7,2792.6,1.2041773]
[1645897041337,0.00350107,2793.7,2792.6,1.2041773]
[1645897041536,0.00350107,2793.7,2792.4,2.1431]
[1645897041740,0.00504122,2792.8,2792.4,0.1431]
[1645897041939,0.00504122,2792.8,2792.1,5.2459]
[1645897042152,0.00504122,2792.8,2792.1,4.2459]
[1645897042541,0.00350107,2793.1,2792.1,4.2459]
[1645897042789,0.00350107,2793.1,2792.6,1.34470904]
[1645897042984,0.02016268,2793.0,2792.1,4.2459]
[1645897043585,0.02016268,2793.0,2792.2,1.791098]
[1645897043789,3.64660107,2793.6,2792.2,1.791098]
[1645897043790,4.00480107,2793.6,2792.2,1.791098]
[1645897043986,0.02016227,2793.1,2792.9,1.08044977]
[1645897044184,0.02016227,2793.1,2792.3,0.3]
[1645897045090,0.3582,2793.5,2792.3,0.3]
[1645897045289,0.00504117,2792.8,2792.7,1.01938976]
[1645897045492,0.00504117,2792.8,2792.3,1.19553]
[1645897046295,0.36170082,2793.6,2792.3,1.19553]
[1645897046520,0.00504132,2792.7,2792.6,1.3015902]
[1645897046723,0.00504132,2792.7,2792.3,1.19553]
[1645897046924,0.00504132,2792.7,2792.3,0.3]
[1645897047325,0.00350082,2793.4,2792.3,0.3]
[1645897047727,0.00504137,2792.6,2792.4,1.09627018]
[1645897048525,0.02016248,2793.1,2792.4,1.09627018]
[1645897048727,0.00350082,2793.4,2792.4,1.09627018]
[1645897048932,0.00504137,2792.6,2792.4,1.09627018]
[1645897049428,3.47870467,2793.5,2792.4,1.09627018]
[1645897049627,0.1431,2793.6,2792.4,1.09627018]
[1645897050306,0.1431,2793.6,2792.9,1.15351762]
[1645897050497,0.1431,2793.7,2792.9,1.15351762]
[1645897051194,0.00504056,2793.4,2792.9,1.15855909]
[1645897051395,0.00504056,2793.4,2792.9,0.53194742]
[1645897052202,1.1641,2793.8,2792.9,0.52690595]
[1645897052400,0.00469661,2793.3,2792.9,0.53160316]
[1645897053404,1.1641,2793.8,2792.9,0.52690595]
[1645897053604,0.00469666,2793.2,2792.9,0.53160312]
[1645897054021,0.00469666,2793.2,2792.9,0.00469717]
[1645897054522,4.6641,2793.8,2792.6,0.1432]
[1645897054724,0.39017307,2793.7,2792.6,0.1432]
[1645897054925,0.39017307,2793.7,2792.9,0.00469717]
[1645897054926,0.00469662,2793.2,2792.9,0.00469717]
[1645897055825,3.86168385,2793.5,2792.3,1.0]
[1645897056027,0.00469662,2793.2,2792.9,0.00469717]
[1645897056930,3.5,2793.5,2792.3,1.0]
[1645897057126,0.39406691,2793.4,2792.3,1.0]
[1645897057328,0.00471985,2793.2,2792.9,0.00472041]
[1645897057803,0.90701181,2793.1,2792.9,0.00472041]
[1645897057994,3.89101181,2793.0,2792.9,0.00472041]
[1645897058191,3.89101181,2793.0,2792.0,0.25]
[1645897058391,0.89579566,2792.9,2791.7,2.7199]
[1645897058592,3.5,2792.8,2791.7,2.7199]
[1645897058893,0.00348385,2792.7,2791.7,2.7199]
[1645897059692,0.00348385,2792.7,2792.1,0.00472118]
[1645897059893,3.50348385,2792.8,2792.1,0.00472118]
[1645897060694,3.50348385,2792.8,2791.6,1.05229066]
[1645897060894,0.39215705,2792.7,2792.3,0.00472292]
[1645897061292,3.6431,2792.9,2792.3,0.00472292]
[1645897061519,0.39212265,2792.8,2792.3,0.00472292]
[1645897061727,3.5,2792.7,2792.3,0.00472292]
[1645897061928,0.39212265,2792.6,2791.7,0.1431]
[1645897062130,0.00348385,2792.6,2792.4,0.00472283]
[1645897062325,0.39610119,2792.9,2792.4,0.00472283]
[1645897062525,3.5,2792.8,2792.4,0.00472283]
[1645897062725,0.39261734,2792.7,2792.4,0.00472283]
[1645897063026,0.39261734,2792.7,2791.7,0.1431]
[1645897063226,0.39610119,2792.6,2792.4,0.00472283]
[1645897063425,0.39261734,2792.5,2792.4,0.00472283]
[1645897063627,0.39261734,2792.9,2792.4,0.00472283]
[1645897064225,0.39261734,2792.9,2792.1,1.06915359]
[1645897064426,0.39610119,2792.9,2792.5,0.00471908]
[1645897064632,1.05925017,2792.9,2792.5,0.00471908]
[1645897065026,3.5,2792.8,2792.5,0.00471908]
[1645897065273,0.39261734,2792.7,2792.5,0.00471908]
[1645897065479,0.39261734,2792.7,2791.7,0.25]
[1645897065676,0.39261734,2792.7,2791.6,0.1431]
[1645897065677,0.00348385,2792.6,2792.5,0.00471908]
[1645897065880,0.39261734,2792.7,2792.5,0.00471908]
[1645897066077,0.39261734,2792.6,2792.5,0.00471908]
[1645897066477,0.39261734,2792.8,2792.5,0.00471908]
[1645897066679,0.39261734,2792.8,2792.1,1.41705892]
[1645897066680,1.05925017,2792.7,2792.1,1.41705892]
[1645897066880,0.39261734,2792.6,2792.4,0.00471917]
[1645897067081,0.39261734,2792.5,2792.4,0.00471917]
[1645897067288,1.05925017,2792.7,2792.4,1.11674842]
[1645897067481,0.39261734,2792.6,2792.5,1.11202925]
[1645897067681,0.66663283,2792.8,2792.5,1.11202925]
[1645897067882,0.66663283,2792.7,2792.5,1.11202925]
[1645897068083,0.39261734,2792.6,2792.1,1.41705892]
[1645897068282,0.39261734,2792.5,2792.4,0.00471942]
[1645897068481,0.39261734,2792.7,2792.4,1.11780021]
[1645897068681,0.39261734,2792.6,2792.4,0.00471942]
[1645897068881,0.39261734,2792.5,2792.4,0.00471942]
[1645897069122,0.39261734,2792.8,2792.4,1.11304273]
[1645897069322,0.39261734,2792.8,2792.5,1.11304273]
[1645897069323,0.39261734,2792.7,2792.5,1.11304273]
[1645897069522,0.39261734,2792.6,2792.5,1.11304273]
[1645897069721,0.39261734,2792.6,2792.4,0.00471946]
[1645897069927,4.39733813,2792.9,2792.4,0.00471946]
[1645897069928,0.39261734,2792.5,2792.4,0.00471946]
[1645897070325,0.89733813,2792.9,2791.8,1.25628081]
[1645897070326,0.00348385,2792.8,2791.9,1.11318081]
[1645897070526,4.40082198,2792.8,2792.3,0.00471951]
[1645897070726,0.39261734,2792.7,2792.3,0.00471951]
[1645897070924,0.39261734,2792.6,2792.3,0.00471951]
[1645897071124,0.89733813,2792.8,2792.3,0.00471951]
[1645897071125,0.39261734,2792.5,2792.3,0.00471951]
[1645897071328,0.39261734,2792.4,2792.3,0.00471951]
[1645897071525,0.39261734,2792.4,2792.3,1.1131907]
[1645897071729,0.89733813,2792.8,2792.3,0.00471954]
[1645897072778,0.89733813,2792.8,2791.9,1.18361154]
[1645897072972,1.29343932,2792.8,2792.0,1.11306808]
[1645897073173,0.39261734,2792.7,2792.0,1.11306808]
[1645897073373,0.90082198,2792.8,2792.0,1.11306808]
[1645897073573,0.39261734,2792.7,2792.0,1.11306808]
[1645897073773,0.39261734,2792.6,2792.0,1.11306808]
[1645897073981,0.39261734,2792.5,2792.0,1.11306808]
[1645897074176,0.39610119,2792.8,2792.0,1.11306808]
[1645897074373,0.39261734,2792.7,2792.0,1.11306808]
[1645897074573,0.00348385,2792.8,2792.0,1.11306808]
[1645897074574,0.39261734,2792.6,2792.0,1.11306808]
[1645897074774,0.39261734,2792.5,2792.0,1.11306808]
[1645897074974,0.00348385,2792.8,2792.0,1.11306808]
[1645897074975,0.39261734,2792.4,2792.0,1.11306808]
[1645897075183,0.39261734,2792.3,2792.0,1.11306808]
[1645897075381,0.00348385,2792.8,2792.2,0.00504209]
[1645897075581,1.29254568,2792.9,2792.3,1.11306808]
[1645897075781,1.29602953,2792.9,2792.3,1.11306808]
[1645897076381,1.29602953,2792.9,2791.9,1.18361154]
[1645897076629,1.29602953,2792.9,2792.2,0.00504232]
[1645897076828,1.29602953,2792.9,2792.3,1.11297903]
[1645897077031,3.5,2792.8,2792.3,1.11297903]
[1645897077229,0.39520755,2792.7,2792.3,1.11297903]
[1645897077431,1.29602953,2792.9,2792.3,1.11297903]
[1645897077631,0.39520755,2792.8,2792.2,0.00504228]
[1645897077835,0.39520755,2792.7,2792.3,1.11294919]
[1645897078033,0.90082198,2792.9,2792.3,1.11294919]
[1645897078034,1.07335721,2792.6,2792.3,1.11294919]
[1645897078232,0.39520755,2792.5,2792.3,1.11294919]
[1645897078833,0.39520755,2792.4,2792.2,0.00504216]
[1645897079263,0.67814966,2792.7,2792.3,1.11292016]
[1645897079434,0.39521596,2792.6,2792.3,1.11292016]
[1645897079634,0.39521596,2792.5,2792.3,1.11292016]
[1645897079837,0.39521596,2792.4,2792.3,1.11292016]
[1645897080039,0.67814966,2792.7,2792.3,1.11292016]
[1645897080276,0.39521596,2792.6,2792.4,1.11292016]
[1645897080481,0.67814966,2792.7,2792.5,1.11292016]
[1645897080677,0.40361479,2792.6,2792.2,0.0050422]
[1645897080879,0.40361479,2792.5,2792.3,1.10441769]
[1645897081077,0.67814966,2792.8,2792.3,1.10441769]
[1645897081279,0.40361479,2792.4,2792.2,0.00504216]
[1645897081480,0.68163351,2792.7,2792.3,1.10446037]
[1645897081681,0.40360731,2792.6,2792.3,1.10446037]
[1645897081886,0.40360731,2792.5,2792.3,1.46266037]
[1645897082083,1.08175697,2793.0,2792.4,3.92657442]
[1645897082285,0.40707851,2792.9,2792.5,1.10446037]
[1645897082482,0.40359466,2792.8,2792.5,1.10446037]
[1645897082682,0.40359466,2792.7,2792.5,1.10446037]
[1645897082882,0.40359466,2792.6,2792.5,1.07885214]
[1645897083088,9.466e-05,2792.6,2792.5,6.12280616]
[1645897083286,0.00357851,2793.0,2792.6,0.89535]
[1645897083483,0.00348385,2793.2,2792.6,0.89535]
[1645897083684,0.67814966,2793.4,2792.7,0.3]
[1645897083881,0.0050405,2793.1,2793.0,1.0]
[1645897084132,0.0050405,2793.1,2793.0,2.39630826]
[1645897084331,0.0050405,2793.1,2792.6,0.89535]
[1645897084537,0.68319016,2793.1,2792.3,5.9606]
[1645897084737,0.67814966,2793.0,2792.4,1.0]
[1645897084935,0.68163351,2793.0,2792.2,2.21584252]
[1645897085135,0.67814966,2793.0,2792.2,0.30504252]
[1645897085338,0.67814966,2793.0,2792.3,1.37319615]
[1645897085742,0.00504074,2793.1,2792.3,1.37319615]
[1645897085743,0.67814966,2792.9,2792.3,1.37319615]
[1645897087978,0.67814966,2793.0,2792.3,1.37319615]
[1645897088180,0.67814966,2793.0,2792.8,1.2977486]
[1645897088396,0.00348385,2793.2,2792.9,3.5]
[1645897088578,0.12809857,2792.9,2792.8,2.4719486]
[1645897089385,0.12809857,2792.9,2792.8,3.4719486]
[1645897089779,0.12809857,2792.9,2792.8,5.3671986]
[1645897089978,0.12809857,2792.9,2792.8,4.3671986]
[1645897090183,0.12809857,2792.9,2792.8,5.3671986]
[1645897090381,0.12809857,2792.9,2792.8,8.8671986]
[1645897090781,9.857e-05,2792.9,2792.8,19.7771986]
[1645897090986,0.00505999,2793.1,2793.0,2.14849]
[1645897091181,0.00505999,2793.1,2793.0,7.0596562]
[1645897091387,0.69838556,2793.7,2793.0,7.0596562]
[1645897091388,0.00348385,2793.6,2793.2,0.00211472]
[1645897091641,0.0202359,2793.7,2793.2,0.00211472]
[1645897091840,0.67814966,2793.8,2793.2,3.86031472]
[1645897092039,0.67708188,2793.8,2793.2,3.86031472]
[1645897092241,0.00348385,2793.9,2793.3,1.33108093]
[1645897092438,0.89733813,2794.1,2793.8,1.34065573]
[1645897092639,0.00348385,2794.0,2793.8,1.34065573]
[1645897092840,0.89733813,2794.2,2793.8,1.34065573]
[1645897093440,0.00220063,2794.0,2793.8,1.34065573]
[1645897094239,0.89733813,2794.2,2793.8,1.34065573]
[1645897094640,0.0050592,2794.0,2793.8,1.34065573]
[1645897095476,0.90082198,2794.4,2793.8,4.84065573]
[1645897095675,0.90082198,2794.4,2793.8,5.73570573]
[1645897095876,0.0050592,2794.0,2793.8,5.73570573]
[1645897096083,0.0050592,2794.0,2793.8,2.23570573]
[1645897096286,0.0050592,2794.0,2793.8,1.34065573]
[1645897096681,0.89733813,2794.3,2793.8,1.34065573]
[1645897097082,0.0050592,2794.0,2793.8,1.34065573]
[1645897098085,0.00348385,2794.4,2793.8,4.84065573]
[1645897098281,0.0050592,2794.0,2793.8,4.84065573]
[1645897098482,0.0050592,2794.0,2793.8,1.34065573]
[1645897098685,0.0050592,2794.0,2793.9,3.5]
[1645897099137,2.62973813,2794.8,2793.9,3.5]
[1645897099138,0.00348385,2794.7,2793.9,1.516]
[1645897099340,0.50348385,2794.8,2794.1,1.78972]
[1645897099540,0.01885471,2794.5,2794.1,2.08972]
[1645897099741,0.01885471,2794.5,2794.1,5.58972]
[1645897100140,0.01885471,2794.5,2794.1,6.58972]
[1645897100342,0.00348385,2794.8,2794.2,1.19095914]
[1645897100545,0.00220042,2794.4,2794.3,3.5]
[1645897101549,0.00348385,2795.2,2794.6,0.8947806]
[1645897101744,0.00880037,2794.9,2794.8,1.03041531]
[1645897102788,0.67450539,2795.2,2794.8,1.03041531]
[1645897102980,0.00220042,2795.0,2794.6,2.6843606]
[1645897103983,1.10844675,2795.1,2794.6,2.6843606]
[1645897104188,0.00506185,2794.9,2794.6,2.6843606]
[1645897104383,0.00506185,2794.9,2794.8,1.01191659]
[1645897104783,0.4385515,2794.9,2794.8,1.01191659]
[1645897105185,0.43348965,2794.9,2794.8,1.01191659]
[1645897107027,0.43348965,2794.9,2794.8,4.51191659]
[1645897108033,0.00220071,2795.0,2794.8,4.51191659]
[1645897108230,0.00220071,2795.0,2794.8,1.01191659]
[1645897108631,0.43348965,2795.2,2794.8,1.01191659]
[1645897108831,0.43348965,2795.1,2794.8,1.01191659]
[1645897109031,0.43855527,2795.0,2794.9,1.0]
[1645897109633,0.43855527,2795.0,2794.8,1.01191659]
[1645897109832,0.00348385,2795.3,2794.8,1.01191659]
[1645897109833,0.43348965,2794.9,2794.8,1.01191659]
[1645897110477,0.43348965,2795.0,2794.8,1.01191659]
[1645897110678,0.43348965,2794.9,2794.8,4.51191659]
[1645897111081,0.57798924,2795.6,2794.9,1.78938]
[1645897111281,0.02025964,2795.4,2795.0,3.5]
[1645897111482,0.02025964,2795.4,2794.9,2.6840628]
[1645897111682,0.43104476,2795.3,2794.9,1.07087265]
[1645897112487,1.1413,2795.8,2794.9,1.96556265]
[1645897112488,0.43611017,2795.2,2794.9,1.96556265]
[1645897112685,0.43611017,2795.2,2794.8,1.01191659]
[1645897112686,0.43104476,2795.1,2794.8,1.01191659]
[1645897112886,0.00506541,2795.2,2794.8,1.01191659]
[1645897112887,0.43104476,2795.0,2794.8,1.01191659]
[1645897113086,0.43104476,2794.9,2794.4,0.8948168]
[1645897113286,0.00506541,2795.2,2794.4,0.8948168]
[1645897113287,0.43104476,2794.8,2794.4,0.8948168]
[1645897113488,0.43104476,2794.7,2794.4,0.8948168]
[1645897113686,1.1334,2795.4,2794.4,0.8948168]